[Event "Titled Tuesday Blitz April 18 Late 2023"]
[White "Estrada Nieto, Julian"]
[Black "Bartel, Mateusz"]
[WhiteFideId "5101018"]
[BlackFideId "1112635"]
[WhiteElo "2161"]
[BlackElo "2521"]
[Result "0-1"]
[Round "01"]
[TimeControl "180+2"]
[Date "2023.04.18"]
[WhiteClock "0:00:02"]
[BlackClock "0:00:17"]

1. e4 {[%clk 0:03:00]}  c6 {[%clk 0:02:51]} 2. d4 {[%clk 0:02:59]}  d5 {[%clk 0:02:51]} 3. Nc3 {[%clk 0:03:00]}  dxe4 {[%clk 0:02:50]} 4. Nxe4 {[%clk 0:03:01]}  Nf6 {[%clk 0:02:51]} 5. Nxf6+ {[%clk 0:03:01]}  exf6 {[%clk 0:02:51]} 6. c3 {[%clk 0:02:57]}  Bd6 {[%clk 0:02:49]} 7. Bd3 {[%clk 0:02:57]}  Na6 {[%clk 0:02:49]} 8. Ne2 {[%clk 0:02:51]}  Nc7 {[%clk 0:02:48]} 9. O-O {[%clk 0:02:49]}  O-O {[%clk 0:02:35]} 10. Bf4 {[%clk 0:02:48]}  Nd5 {[%clk 0:02:26]} 11. Bxd6 {[%clk 0:02:44]}  Qxd6 {[%clk 0:02:27]} 12. Qd2 {[%clk 0:02:41]}  Bg4 {[%clk 0:02:22]} 13. f3 {[%clk 0:02:37]}  Bd7 {[%clk 0:02:16]} 14. c4 {[%clk 0:02:31]}  Nc7 {[%clk 0:02:05]} 15. Rad1 {[%clk 0:02:05]}  Rfe8 {[%clk 0:02:03]} 16. Kh1 {[%clk 0:01:59]}  g6 {[%clk 0:01:58]} 17. Ng3 {[%clk 0:01:55]}  f5 {[%clk 0:01:59]} 18. Qg5 {[%clk 0:01:43]}  Qe7 {[%clk 0:01:32]} 19. Qh6 {[%clk 0:01:31]}  Rad8 {[%clk 0:01:30]} 20. Bc2 {[%clk 0:01:06]}  Be6 {[%clk 0:01:26]} 21. Rfe1 {[%clk 0:00:51]}  Qf8 {[%clk 0:01:25]} 22. Qf4 {[%clk 0:00:50]}  Qd6 {[%clk 0:01:22]} 23. Qg5 {[%clk 0:00:36]}  Qe7 {[%clk 0:01:10]} 24. Qh6 {[%clk 0:00:26]}  Qf8 {[%clk 0:00:57]} 25. Qf4 {[%clk 0:00:26]}  Rd7 {[%clk 0:00:55]} 26. b3 {[%clk 0:00:17]}  h6 {[%clk 0:00:49]} 27. Qh4 {[%clk 0:00:10]}  Kg7 {[%clk 0:00:44]} 28. Ne2 {[%clk 0:00:09]}  Qe7 {[%clk 0:00:42]} 29. Qg3 {[%clk 0:00:09]}  Kh7 {[%clk 0:00:39]} 30. h4 {[%clk 0:00:08]}  Qd6 {[%clk 0:00:38]} 31. Nf4 {[%clk 0:00:07]}  Rg8 {[%clk 0:00:35]} 32. Kh2 {[%clk 0:00:04]}  Qf8 {[%clk 0:00:26]} 33. d5 {[%clk 0:00:03]}  cxd5 {[%clk 0:00:26]} 34. cxd5 {[%clk 0:00:04]}  Bxd5 {[%clk 0:00:23]} 35. Re5 {[%clk 0:00:02]}  Bc6 {[%clk 0:00:21]} 36. Rxd7 {[%clk 0:00:02]}  Bxd7 {[%clk 0:00:21]} 37. h5 {[%clk 0:00:02]}  Qd6 {[%clk 0:00:17]} 0-1


[Site "https://www.chess.com"]

[Event "Titled Tuesday Blitz April 18 Late 2023"]
[White "D`Arruda, Ricardo D."]
[Black "Grigorjev, Iljya"]
[WhiteFideId "100692"]
[BlackFideId "24159565"]
[WhiteElo "2438"]
[BlackElo "2323"]
[Result "0-1"]
[Round "01"]
[TimeControl "180+2"]
[Date "2023.04.18"]
[WhiteClock "0:00:02"]
[BlackClock "0:00:15"]

1. d4 {[%clk 0:02:56]}  Nf6 {[%clk 0:02:59]} 2. Nf3 {[%clk 0:02:55]}  g6 {[%clk 0:03:00]} 3. Nc3 {[%clk 0:02:55]}  d5 {[%clk 0:03:00]} 4. Bg5 {[%clk 0:02:54]}  Bg7 {[%clk 0:02:59]} 5. Bxf6 {[%clk 0:02:53]}  Bxf6 {[%clk 0:03:00]} 6. e4 {[%clk 0:02:53]}  dxe4 {[%clk 0:02:59]} 7. Nxe4 {[%clk 0:02:54]}  Bg7 {[%clk 0:02:59]} 8. Bc4 {[%clk 0:02:55]}  O-O {[%clk 0:02:59]} 9. O-O {[%clk 0:02:55]}  Nd7 {[%clk 0:02:56]} 10. Re1 {[%clk 0:02:53]}  Nf6 {[%clk 0:02:47]} 11. Qe2 {[%clk 0:02:47]}  Bf5 {[%clk 0:02:19]} 12. Ng3 {[%clk 0:02:42]}  Bg4 {[%clk 0:02:08]} 13. c3 {[%clk 0:02:38]}  Bxf3 {[%clk 0:02:06]} 14. Qxf3 {[%clk 0:02:37]}  c6 {[%clk 0:02:07]} 15. Ne4 {[%clk 0:02:32]}  Nxe4 {[%clk 0:02:02]} 16. Rxe4 {[%clk 0:02:33]}  e6 {[%clk 0:02:03]} 17. h4 {[%clk 0:02:29]}  h5 {[%clk 0:02:02]} 18. g4 {[%clk 0:02:04]}  Qxh4 {[%clk 0:01:58]} 19. gxh5 {[%clk 0:02:03]}  Qxh5 {[%clk 0:01:42]} 20. Qxh5 {[%clk 0:02:03]}  gxh5 {[%clk 0:01:43]} 21. Rh4 {[%clk 0:01:37]}  a5 {[%clk 0:01:43]} 22. Rxh5 {[%clk 0:01:35]}  a4 {[%clk 0:01:40]} 23. Kh1 {[%clk 0:01:27]}  Rfd8 {[%clk 0:01:35]} 24. Rg1 {[%clk 0:01:24]}  Kf8 {[%clk 0:01:36]} 25. Rg3 {[%clk 0:01:17]}  Bf6 {[%clk 0:01:30]} 26. Rf3 {[%clk 0:01:11]}  Ke7 {[%clk 0:01:30]} 27. Rh6 {[%clk 0:01:11]}  Bg7 {[%clk 0:01:22]} 28. Rh7 {[%clk 0:01:08]}  Rh8 {[%clk 0:01:22]} 29. Rxh8 {[%clk 0:01:08]}  Rxh8+ {[%clk 0:01:23]} 30. Kg2 {[%clk 0:01:08]}  b5 {[%clk 0:01:16]} 31. Bd3 {[%clk 0:01:07]}  b4 {[%clk 0:01:13]} 32. Be4 {[%clk 0:00:57]}  Rc8 {[%clk 0:01:06]} 33. Rd3 {[%clk 0:00:49]}  bxc3 {[%clk 0:00:50]} 34. bxc3 {[%clk 0:00:38]}  c5 {[%clk 0:00:49]} 35. d5 {[%clk 0:00:37]}  c4 {[%clk 0:00:45]} 36. Re3 {[%clk 0:00:33]}  Kd6 {[%clk 0:00:29]} 37. dxe6 {[%clk 0:00:33]}  fxe6 {[%clk 0:00:30]} 38. Bc2 {[%clk 0:00:26]}  a3 {[%clk 0:00:26]} 39. Kf1 {[%clk 0:00:22]}  Rb8 {[%clk 0:00:26]} 40. Ba4 {[%clk 0:00:15]}  Rb2 {[%clk 0:00:25]} 41. Re2 {[%clk 0:00:16]}  Rb1+ {[%clk 0:00:25]} 42. Kg2 {[%clk 0:00:15]}  Bxc3 {[%clk 0:00:21]} 43. Rc2 {[%clk 0:00:15]}  Rb4 {[%clk 0:00:22]} 44. Be8 {[%clk 0:00:12]}  Bb2 {[%clk 0:00:21]} 45. Bg6 {[%clk 0:00:11]}  c3 {[%clk 0:00:21]} 46. f3 {[%clk 0:00:10]}  Rh4 {[%clk 0:00:20]} 47. Be4 {[%clk 0:00:11]}  Kc5 {[%clk 0:00:20]} 48. Re2 {[%clk 0:00:11]}  Kd4 {[%clk 0:00:20]} 49. Bc2 {[%clk 0:00:12]}  Rh6 {[%clk 0:00:16]} 50. Re4+ {[%clk 0:00:11]}  Kc5 {[%clk 0:00:17]} 51. Bb3 {[%clk 0:00:10]}  Kd6 {[%clk 0:00:16]} 52. Re2 {[%clk 0:00:08]}  Bc1 {[%clk 0:00:15]} 53. Bc4 {[%clk 0:00:05]}  Bd2 {[%clk 0:00:15]} 54. Bb3 {[%clk 0:00:05]}  e5 {[%clk 0:00:16]} 55. Re4 {[%clk 0:00:03]}  Bf4 {[%clk 0:00:16]} 56. Re2 {[%clk 0:00:02]}  Rh2+ {[%clk 0:00:15]} 57. Kf1 {[%clk 0:00:03]}  Rh1+ {[%clk 0:00:15]} 58. Kg2 {[%clk 0:00:03]}  Rb1 {[%clk 0:00:15]} 59. Kf2 {[%clk 0:00:03]}  Rxb3 {[%clk 0:00:14]} 60. axb3 {[%clk 0:00:02]}  Bd2 {[%clk 0:00:15]} 0-1


[Site "https://www.chess.com"]

[Event "Titled Tuesday Blitz April 18 Late 2023"]
[White "Karacsonyi, Gellert"]
[Black "Shapiro, Viktor"]
[WhiteFideId "764620"]
[BlackFideId "4175700"]
[WhiteElo "2308"]
[BlackElo "2152"]
[Result "1-0"]
[Round "01"]
[TimeControl "180+2"]
[Date "2023.04.18"]
[WhiteClock "0:01:33"]
[BlackClock "0:00:35"]

1. e4 {[%clk 0:03:00]}  Nf6 {[%clk 0:02:59]} 2. e5 {[%clk 0:03:01]}  Nd5 {[%clk 0:02:58]} 3. c4 {[%clk 0:03:01]}  Nb6 {[%clk 0:02:57]} 4. d4 {[%clk 0:03:02]}  d6 {[%clk 0:02:56]} 5. exd6 {[%clk 0:03:03]}  cxd6 {[%clk 0:02:57]} 6. Nc3 {[%clk 0:03:03]}  g6 {[%clk 0:02:57]} 7. Be3 {[%clk 0:03:04]}  Bg7 {[%clk 0:02:57]} 8. Rc1 {[%clk 0:03:05]}  O-O {[%clk 0:02:58]} 9. b3 {[%clk 0:03:05]}  f5 {[%clk 0:02:58]} 10. d5 {[%clk 0:03:03]}  e5 {[%clk 0:02:56]} 11. dxe6 {[%clk 0:03:03]}  Nc6 {[%clk 0:02:57]} 12. Nd5 {[%clk 0:02:56]}  Bxe6 {[%clk 0:02:55]} 13. Nh3 {[%clk 0:02:49]}  Bxd5 {[%clk 0:02:44]} 14. cxd5 {[%clk 0:02:44]}  Ne5 {[%clk 0:02:44]} 15. Be2 {[%clk 0:02:41]}  Qh4 {[%clk 0:02:18]} 16. O-O {[%clk 0:02:11]}  f4 {[%clk 0:02:18]} 17. Nxf4 {[%clk 0:02:05]}  Rxf4 {[%clk 0:02:16]} 18. g3 {[%clk 0:02:06]}  Qh3 {[%clk 0:01:37]} 19. Bxf4 {[%clk 0:02:03]}  Rf8 {[%clk 0:01:34]} 20. Bxe5 {[%clk 0:01:57]}  Bxe5 {[%clk 0:01:33]} 21. Bg4 {[%clk 0:01:57]}  Qh6 {[%clk 0:01:33]} 22. f4 {[%clk 0:01:51]}  Bf6 {[%clk 0:01:21]} 23. Be6+ {[%clk 0:01:51]}  Kh8 {[%clk 0:01:21]} 24. Rc7 {[%clk 0:01:52]}  g5 {[%clk 0:01:08]} 25. Qg4 {[%clk 0:01:44]}  Bd4+ {[%clk 0:00:53]} 26. Kg2 {[%clk 0:01:41]}  Qg6 {[%clk 0:00:47]} 27. f5 {[%clk 0:01:33]}  Qh6 {[%clk 0:00:35]} 28. Qxd4+ {[%clk 0:01:33]} 1-0


[Site "https://www.chess.com"]

[Event "Titled Tuesday Blitz April 18 Late 2023"]
[White "Vaglio Munoz, Jaime"]
[Black "Popovic, Dusan"]
[WhiteFideId "6500145"]
[BlackFideId "927031"]
[WhiteElo "2199"]
[BlackElo "2573"]
[Result "0-1"]
[Round "01"]
[TimeControl "180+2"]
[Date "2023.04.18"]
[WhiteClock "0:00:06"]
[BlackClock "0:00:43"]

1. Nf3 {[%clk 0:02:59]}  g6 {[%clk 0:02:59]} 2. c4 {[%clk 0:02:57]}  Bg7 {[%clk 0:03:00]} 3. d4 {[%clk 0:02:57]}  d6 {[%clk 0:03:00]} 4. b3 {[%clk 0:02:57]}  Nf6 {[%clk 0:02:57]} 5. Bb2 {[%clk 0:02:56]}  O-O {[%clk 0:02:56]} 6. g3 {[%clk 0:02:57]}  c6 {[%clk 0:02:56]} 7. Bg2 {[%clk 0:02:57]}  Qa5+ {[%clk 0:02:55]} 8. Qd2 {[%clk 0:02:56]}  Qh5 {[%clk 0:02:53]} 9. h3 {[%clk 0:02:56]}  Ne4 {[%clk 0:02:52]} 10. Qf4 {[%clk 0:02:51]}  Qa5+ {[%clk 0:02:50]} 11. Nfd2 {[%clk 0:02:47]}  d5 {[%clk 0:02:34]} 12. O-O {[%clk 0:02:29]}  f5 {[%clk 0:02:09]} 13. f3 {[%clk 0:02:13]}  Nf6 {[%clk 0:01:59]} 14. Kh2 {[%clk 0:01:34]}  Nh5 {[%clk 0:01:57]} 15. Qe3 {[%clk 0:01:33]}  Nxg3 {[%clk 0:01:57]} 16. Rg1 {[%clk 0:01:22]}  Qc7 {[%clk 0:01:53]} 17. f4 {[%clk 0:01:18]}  Nh5 {[%clk 0:01:44]} 18. cxd5 {[%clk 0:01:06]}  Qxf4+ {[%clk 0:01:29]} 19. Qxf4 {[%clk 0:01:04]}  Nxf4 {[%clk 0:01:30]} 20. dxc6 {[%clk 0:00:55]}  Nxc6 {[%clk 0:01:30]} 21. e3 {[%clk 0:00:55]}  Nd3 {[%clk 0:01:28]} 22. Ba3 {[%clk 0:00:52]}  Nxd4 {[%clk 0:01:21]} 23. exd4 {[%clk 0:00:27]}  Bxd4 {[%clk 0:01:20]} 24. Rd1 {[%clk 0:00:19]}  Bxa1 {[%clk 0:00:53]} 25. Bxe7 {[%clk 0:00:18]}  Re8 {[%clk 0:00:52]} 26. Bd5+ {[%clk 0:00:17]}  Kg7 {[%clk 0:00:52]} 27. Bb4 {[%clk 0:00:16]}  Nxb4 {[%clk 0:00:50]} 28. Bc4 {[%clk 0:00:14]}  Be6 {[%clk 0:00:48]} 29. Nf3 {[%clk 0:00:14]}  Bxc4 {[%clk 0:00:45]} 30. bxc4 {[%clk 0:00:15]}  Rad8 {[%clk 0:00:45]} 31. Rc1 {[%clk 0:00:13]}  Re2+ {[%clk 0:00:44]} 32. Kg3 {[%clk 0:00:12]}  Rd3 {[%clk 0:00:43]} 33. Na3 {[%clk 0:00:10]}  Be5+ {[%clk 0:00:43]} 34. Kh4 {[%clk 0:00:07]}  Re4+ {[%clk 0:00:43]} 35. Kg5 {[%clk 0:00:06]}  h6# {[%clk 0:00:43]} 0-1


[Site "https://www.chess.com"]

[Event "Titled Tuesday Blitz April 18 Late 2023"]
[White "Drygalov, Andrey"]
[Black "Kielinkei"]
[WhiteFideId "24171735"]
[WhiteElo "2466"]
[BlackElo "2435"]
[Result "1-0"]
[Round "01"]
[TimeControl "180+2"]
[Date "2023.04.18"]
[WhiteClock "0:01:24"]
[BlackClock "0:00:05"]

1. e4 {[%clk 0:03:00]}  c5 {[%clk 0:03:00]} 2. Nf3 {[%clk 0:03:00]}  e6 {[%clk 0:03:00]} 3. d4 {[%clk 0:03:00]}  cxd4 {[%clk 0:03:01]} 4. Nxd4 {[%clk 0:03:00]}  Nc6 {[%clk 0:03:02]} 5. Nc3 {[%clk 0:03:01]}  Qc7 {[%clk 0:03:02]} 6. Be2 {[%clk 0:03:01]}  a6 {[%clk 0:03:01]} 7. Nxc6 {[%clk 0:03:02]}  bxc6 {[%clk 0:03:00]} 8. Qd3 {[%clk 0:03:01]}  Nf6 {[%clk 0:03:00]} 9. Qg3 {[%clk 0:03:01]}  Qxg3 {[%clk 0:03:00]} 10. hxg3 {[%clk 0:03:02]}  d6 {[%clk 0:02:49]} 11. g4 {[%clk 0:03:02]}  Be7 {[%clk 0:02:46]} 12. g5 {[%clk 0:03:02]}  Nd7 {[%clk 0:02:46]} 13. Be3 {[%clk 0:03:02]}  Rb8 {[%clk 0:02:45]} 14. O-O-O {[%clk 0:03:02]}  Kd8 {[%clk 0:02:30]} 15. f4 {[%clk 0:02:49]}  Kc7 {[%clk 0:02:24]} 16. g3 {[%clk 0:02:48]}  f6 {[%clk 0:02:19]} 17. gxf6 {[%clk 0:02:47]}  Bxf6 {[%clk 0:02:15]} 18. Rd3 {[%clk 0:02:36]}  h6 {[%clk 0:02:08]} 19. Rhd1 {[%clk 0:02:34]}  Be7 {[%clk 0:02:09]} 20. Bg4 {[%clk 0:02:32]}  Nf6 {[%clk 0:02:07]} 21. Bf3 {[%clk 0:02:32]}  Nd7 {[%clk 0:01:58]} 22. Na4 {[%clk 0:02:29]}  a5 {[%clk 0:01:54]} 23. R3d2 {[%clk 0:02:25]}  Ba6 {[%clk 0:01:52]} 24. b3 {[%clk 0:02:25]}  h5 {[%clk 0:01:48]} 25. c4 {[%clk 0:02:24]}  Rbd8 {[%clk 0:01:23]} 26. Kc2 {[%clk 0:02:24]}  h4 {[%clk 0:01:22]} 27. g4 {[%clk 0:02:20]}  h3 {[%clk 0:01:18]} 28. Rh1 {[%clk 0:02:18]}  g5 {[%clk 0:01:11]} 29. f5 {[%clk 0:02:16]}  Ne5 {[%clk 0:00:59]} 30. Bb6+ {[%clk 0:02:13]}  Kd7 {[%clk 0:00:58]} 31. Bxd8 {[%clk 0:02:13]}  Nxf3 {[%clk 0:00:54]} 32. Bxe7 {[%clk 0:01:59]}  Nxd2 {[%clk 0:00:53]} 33. Bf6 {[%clk 0:01:59]}  Rf8 {[%clk 0:00:43]} 34. Kxd2 {[%clk 0:01:52]}  Rxf6 {[%clk 0:00:43]} 35. Rxh3 {[%clk 0:01:52]}  exf5 {[%clk 0:00:40]} 36. exf5 {[%clk 0:01:49]}  Rf7 {[%clk 0:00:36]} 37. Nc3 {[%clk 0:01:49]}  Ke7 {[%clk 0:00:32]} 38. Ne4 {[%clk 0:01:49]}  d5 {[%clk 0:00:29]} 39. Nxg5 {[%clk 0:01:44]}  Rg7 {[%clk 0:00:29]} 40. Rh7 {[%clk 0:01:33]}  Rxh7 {[%clk 0:00:27]} 41. Nxh7 {[%clk 0:01:34]}  dxc4 {[%clk 0:00:28]} 42. bxc4 {[%clk 0:01:35]}  Bxc4 {[%clk 0:00:29]} 43. a3 {[%clk 0:01:35]}  Ba2 {[%clk 0:00:25]} 44. Ke3 {[%clk 0:01:32]}  c5 {[%clk 0:00:23]} 45. Ng5 {[%clk 0:01:31]}  c4 {[%clk 0:00:19]} 46. Ne4 {[%clk 0:01:31]}  Bb1 {[%clk 0:00:18]} 47. Nc3 {[%clk 0:01:31]}  Bd3 {[%clk 0:00:16]} 48. Kf4 {[%clk 0:01:31]}  Kf7 {[%clk 0:00:14]} 49. g5 {[%clk 0:01:32]}  Kg7 {[%clk 0:00:14]} 50. Nd5 {[%clk 0:01:32]}  Kf7 {[%clk 0:00:14]} 51. g6+ {[%clk 0:01:32]}  Kg7 {[%clk 0:00:12]} 52. Kg5 {[%clk 0:01:33]}  Be4 {[%clk 0:00:12]} 53. f6+ {[%clk 0:01:33]}  Kf8 {[%clk 0:00:12]} 54. Ne7 {[%clk 0:01:30]}  Bxg6 {[%clk 0:00:08]} 55. Nxg6+ {[%clk 0:01:31]}  Ke8 {[%clk 0:00:08]} 56. Ne5 {[%clk 0:01:24]}  c3 {[%clk 0:00:08]} 57. Kg6 {[%clk 0:01:23]}  c2 {[%clk 0:00:07]} 58. Nd3 {[%clk 0:01:24]}  Kf8 {[%clk 0:00:05]} 59. a4 {[%clk 0:01:24]}  Kg8 {[%clk 0:00:04]} 60. Nc1 {[%clk 0:01:24]}  Kf8 {[%clk 0:00:05]} 61. f7 {[%clk 0:01:24]} 1-0


[Site "https://www.chess.com"]

[Event "Titled Tuesday Blitz April 18 Late 2023"]
[White "Melikhov, Evgeny V."]
[Black "Quesada Perez, Yasser"]
[WhiteFideId "4122046"]
[BlackFideId "3509362"]
[WhiteElo "2158"]
[BlackElo "2496"]
[Result "0-1"]
[Round "01"]
[TimeControl "180+2"]
[Date "2023.04.18"]
[WhiteClock "0:01:45"]
[BlackClock "0:02:13"]

1. d4 {[%clk 0:02:59]}  Nf6 {[%clk 0:02:57]} 2. c4 {[%clk 0:02:58]}  e6 {[%clk 0:02:58]} 3. Nc3 {[%clk 0:02:57]}  Bb4 {[%clk 0:02:58]} 4. Qc2 {[%clk 0:02:58]}  c5 {[%clk 0:02:57]} 5. dxc5 {[%clk 0:02:57]}  O-O {[%clk 0:02:55]} 6. a3 {[%clk 0:02:57]}  Bxc5 {[%clk 0:02:52]} 7. Nf3 {[%clk 0:02:56]}  d5 {[%clk 0:02:51]} 8. Bg5 {[%clk 0:02:49]}  Nc6 {[%clk 0:02:33]} 9. O-O-O {[%clk 0:02:47]}  Be7 {[%clk 0:02:25]} 10. cxd5 {[%clk 0:02:20]}  exd5 {[%clk 0:02:24]} 11. Bxf6 {[%clk 0:02:12]}  Bxf6 {[%clk 0:02:24]} 12. Nxd5 {[%clk 0:02:12]}  Be6 {[%clk 0:02:21]} 13. Kb1 {[%clk 0:01:45]}  Bxd5 {[%clk 0:02:13]} 0-1


[Site "https://www.chess.com"]

[Event "Titled Tuesday Blitz April 18 Late 2023"]
[White "Costachi, Mihnea"]
[Black "Mackster23"]
[WhiteFideId "1217518"]
[WhiteElo "2456"]
[BlackElo "2428"]
[Result "1-0"]
[Round "01"]
[TimeControl "180+2"]
[Date "2023.04.18"]
[WhiteClock "0:00:26"]
[BlackClock "0:00:15"]

1. e4 {[%clk 0:02:56]}  e6 {[%clk 0:02:58]} 2. Qe2 {[%clk 0:02:56]}  c5 {[%clk 0:02:56]} 3. Nf3 {[%clk 0:02:54]}  Nc6 {[%clk 0:02:55]} 4. g3 {[%clk 0:02:54]}  Be7 {[%clk 0:02:45]} 5. Bg2 {[%clk 0:02:54]}  d5 {[%clk 0:02:40]} 6. d3 {[%clk 0:02:53]}  Nf6 {[%clk 0:02:39]} 7. O-O {[%clk 0:02:52]}  O-O {[%clk 0:02:39]} 8. c3 {[%clk 0:02:52]}  Re8 {[%clk 0:02:36]} 9. Nbd2 {[%clk 0:02:50]}  b5 {[%clk 0:02:25]} 10. a4 {[%clk 0:02:49]}  b4 {[%clk 0:02:24]} 11. d4 {[%clk 0:02:40]}  bxc3 {[%clk 0:02:20]} 12. bxc3 {[%clk 0:02:40]}  cxd4 {[%clk 0:02:20]} 13. Nxd4 {[%clk 0:02:37]}  Nxd4 {[%clk 0:02:17]} 14. cxd4 {[%clk 0:02:38]}  dxe4 {[%clk 0:02:12]} 15. Nxe4 {[%clk 0:02:38]}  Nd5 {[%clk 0:02:10]} 16. Ba3 {[%clk 0:02:33]}  Bxa3 {[%clk 0:02:03]} 17. Rxa3 {[%clk 0:02:34]}  Qa5 {[%clk 0:01:54]} 18. Nc5 {[%clk 0:02:18]}  Rd8 {[%clk 0:01:45]} 19. Rb1 {[%clk 0:02:13]}  Qc7 {[%clk 0:01:16]} 20. Rab3 {[%clk 0:02:06]}  a5 {[%clk 0:01:03]} 21. Qe5 {[%clk 0:02:07]}  Ra7 {[%clk 0:00:53]} 22. Rb8 {[%clk 0:01:52]}  Nb4 {[%clk 0:00:50]} 23. Nb7 {[%clk 0:01:37]}  Qxe5 {[%clk 0:00:34]} 24. dxe5 {[%clk 0:01:36]}  Rf8 {[%clk 0:00:34]} 25. Nxa5 {[%clk 0:01:31]}  Nd3 {[%clk 0:00:30]} 26. Nc6 {[%clk 0:01:27]}  Rc7 {[%clk 0:00:30]} 27. a5 {[%clk 0:01:21]}  g5 {[%clk 0:00:25]} 28. h4 {[%clk 0:00:56]}  gxh4 {[%clk 0:00:24]} 29. gxh4 {[%clk 0:00:57]}  Bd7 {[%clk 0:00:24]} 30. Rxf8+ {[%clk 0:00:47]}  Kxf8 {[%clk 0:00:25]} 31. Nb8 {[%clk 0:00:41]}  Nxe5 {[%clk 0:00:24]} 32. a6 {[%clk 0:00:40]}  Ra7 {[%clk 0:00:21]} 33. Bb7 {[%clk 0:00:31]}  Nd3 {[%clk 0:00:16]} 34. Nxd7+ {[%clk 0:00:30]}  Ke7 {[%clk 0:00:16]} 35. Nb8 {[%clk 0:00:26]}  Nc5 {[%clk 0:00:15]} 36. Nc6+ {[%clk 0:00:26]} 1-0


[Site "https://www.chess.com"]

[Event "Titled Tuesday Blitz April 18 Late 2023"]
[White "Smirnov, Pavel"]
[Black "Delorme, Axel"]
[WhiteFideId "4123425"]
[BlackFideId "632023"]
[WhiteElo "2519"]
[BlackElo "2478"]
[Result "1-0"]
[Round "01"]
[TimeControl "180+2"]
[Date "2023.04.18"]
[WhiteClock "0:01:40"]
[BlackClock "0:01:23"]

1. d4 {[%clk 0:03:00]}  d5 {[%clk 0:02:58]} 2. c4 {[%clk 0:03:00]}  e6 {[%clk 0:02:58]} 3. Nf3 {[%clk 0:03:00]}  c6 {[%clk 0:02:57]} 4. g3 {[%clk 0:03:00]}  dxc4 {[%clk 0:02:57]} 5. Bg2 {[%clk 0:03:01]}  b5 {[%clk 0:02:57]} 6. O-O {[%clk 0:03:00]}  Bb7 {[%clk 0:02:54]} 7. Ne5 {[%clk 0:02:59]}  Nd7 {[%clk 0:02:53]} 8. Nxc6 {[%clk 0:02:57]}  Qb6 {[%clk 0:02:52]} 9. Ne5 {[%clk 0:02:42]}  Nxe5 {[%clk 0:02:44]} 10. dxe5 {[%clk 0:02:40]}  Bxg2 {[%clk 0:02:44]} 11. Kxg2 {[%clk 0:02:41]}  Bc5 {[%clk 0:02:39]} 12. Qc2 {[%clk 0:02:39]}  Ne7 {[%clk 0:02:37]} 13. Nc3 {[%clk 0:02:39]}  O-O {[%clk 0:02:34]} 14. Ne4 {[%clk 0:02:36]}  h6 {[%clk 0:02:19]} 15. Bxh6 {[%clk 0:02:32]}  Nf5 {[%clk 0:02:14]} 16. Bg5 {[%clk 0:02:23]}  Bd4 {[%clk 0:02:09]} 17. Bf4 {[%clk 0:02:11]}  Rfd8 {[%clk 0:01:52]} 18. Rad1 {[%clk 0:02:06]}  Rd5 {[%clk 0:01:37]} 19. Ng5 {[%clk 0:02:02]}  Qc6 {[%clk 0:01:26]} 20. Nf3 {[%clk 0:01:41]}  Rad8 {[%clk 0:01:23]} 21. e4 {[%clk 0:01:40]} 1-0


[Site "https://www.chess.com"]

[Event "Titled Tuesday Blitz April 18 Late 2023"]
[White "Szpar, Milosz"]
[Black "Gatterer, Florian"]
[WhiteFideId "1184989"]
[BlackFideId "811688"]
[WhiteElo "2436"]
[BlackElo "2221"]
[Result "1/2-1/2"]
[Round "01"]
[TimeControl "180+2"]
[Date "2023.04.18"]
[WhiteClock "0:00:06"]
[BlackClock "0:00:17"]

1. e4 {[%clk 0:02:59]}  c5 {[%clk 0:02:59]} 2. Nf3 {[%clk 0:02:57]}  e6 {[%clk 0:03:00]} 3. d4 {[%clk 0:02:57]}  cxd4 {[%clk 0:03:00]} 4. Nxd4 {[%clk 0:02:57]}  Nf6 {[%clk 0:03:00]} 5. Nc3 {[%clk 0:02:53]}  Nc6 {[%clk 0:03:01]} 6. Ndb5 {[%clk 0:02:44]}  Bc5 {[%clk 0:03:00]} 7. Nd6+ {[%clk 0:02:32]}  Ke7 {[%clk 0:02:59]} 8. Bf4 {[%clk 0:02:30]}  e5 {[%clk 0:02:59]} 9. Nf5+ {[%clk 0:02:30]}  Kf8 {[%clk 0:02:59]} 10. Bg5 {[%clk 0:02:29]}  Bb4 {[%clk 0:02:58]} 11. Ne3 {[%clk 0:02:21]}  h6 {[%clk 0:02:41]} 12. Bxf6 {[%clk 0:02:08]}  Bxc3+ {[%clk 0:02:40]} 13. bxc3 {[%clk 0:02:07]}  Qxf6 {[%clk 0:02:39]} 14. Bc4 {[%clk 0:02:02]}  d6 {[%clk 0:02:34]} 15. O-O {[%clk 0:02:00]}  Be6 {[%clk 0:02:34]} 16. Qxd6+ {[%clk 0:01:53]}  Kg8 {[%clk 0:02:34]} 17. Bxe6 {[%clk 0:01:49]}  fxe6 {[%clk 0:02:27]} 18. Rab1 {[%clk 0:01:46]}  Rb8 {[%clk 0:02:20]} 19. Qc7 {[%clk 0:01:09]}  Qf7 {[%clk 0:01:53]} 20. Qxf7+ {[%clk 0:01:04]}  Kxf7 {[%clk 0:01:54]} 21. Rfd1 {[%clk 0:01:01]}  Ke7 {[%clk 0:01:50]} 22. f3 {[%clk 0:00:59]}  b6 {[%clk 0:01:46]} 23. Kf2 {[%clk 0:00:58]}  Rbc8 {[%clk 0:01:46]} 24. Rd3 {[%clk 0:00:55]}  Rhd8 {[%clk 0:01:43]} 25. Rbd1 {[%clk 0:00:54]}  Rxd3 {[%clk 0:01:27]} 26. cxd3 {[%clk 0:00:55]}  Na5 {[%clk 0:01:25]} 27. c4 {[%clk 0:00:55]}  Nc6 {[%clk 0:01:25]} 28. Rb1 {[%clk 0:00:45]}  Nd4 {[%clk 0:01:23]} 29. Ke1 {[%clk 0:00:42]}  Rc5 {[%clk 0:01:21]} 30. Kd2 {[%clk 0:00:39]}  Ra5 {[%clk 0:01:20]} 31. Rb2 {[%clk 0:00:40]}  Kd6 {[%clk 0:01:20]} 32. Nd1 {[%clk 0:00:37]}  Kc5 {[%clk 0:01:09]} 33. Nc3 {[%clk 0:00:36]}  a6 {[%clk 0:01:06]} 34. Ne2 {[%clk 0:00:34]}  Nxe2 {[%clk 0:00:59]} 35. Kxe2 {[%clk 0:00:34]}  Kd4 {[%clk 0:00:59]} 36. Kd2 {[%clk 0:00:32]}  Ra3 {[%clk 0:00:59]} 37. Rxb6 {[%clk 0:00:24]}  Rxa2+ {[%clk 0:00:56]} 38. Kd1 {[%clk 0:00:19]}  Kxd3 {[%clk 0:00:56]} 39. Rd6+ {[%clk 0:00:18]}  Kxc4 {[%clk 0:00:52]} 40. Rxe6 {[%clk 0:00:19]}  Rxg2 {[%clk 0:00:49]} 41. Rxe5 {[%clk 0:00:18]}  Kd4 {[%clk 0:00:45]} 42. Re6 {[%clk 0:00:17]}  Rxh2 {[%clk 0:00:42]} 43. Rxa6 {[%clk 0:00:16]}  Ke3 {[%clk 0:00:42]} 44. Ra3+ {[%clk 0:00:14]}  Kf4 {[%clk 0:00:42]} 45. Ke1 {[%clk 0:00:14]}  g5 {[%clk 0:00:41]} 46. Kf1 {[%clk 0:00:14]}  h5 {[%clk 0:00:41]} 47. Kg1 {[%clk 0:00:10]}  Rc2 {[%clk 0:00:39]} 48. Ra5 {[%clk 0:00:06]}  g4 {[%clk 0:00:34]} 49. fxg4 {[%clk 0:00:06]}  hxg4 {[%clk 0:00:34]} 50. e5 {[%clk 0:00:06]}  Re2 {[%clk 0:00:26]} 51. Ra4+ {[%clk 0:00:06]}  Kg3 {[%clk 0:00:25]} 52. Ra3+ {[%clk 0:00:06]}  Kh4 {[%clk 0:00:25]} 53. Ra5 {[%clk 0:00:06]}  g3 {[%clk 0:00:24]} 54. Ra8 {[%clk 0:00:06]}  Rxe5 {[%clk 0:00:21]} 55. Rh8+ {[%clk 0:00:06]}  Kg4 {[%clk 0:00:20]} 56. Rg8+ {[%clk 0:00:06]}  Kf3 {[%clk 0:00:21]} 57. Rf8+ {[%clk 0:00:07]}  Ke4 {[%clk 0:00:20]} 58. Rg8 {[%clk 0:00:07]}  Kf4 {[%clk 0:00:19]} 59. Rf8+ {[%clk 0:00:07]}  Rf5 {[%clk 0:00:19]} 60. Ra8 {[%clk 0:00:05]}  Re5 {[%clk 0:00:19]} 61. Rf8+ {[%clk 0:00:04]}  Rf5 {[%clk 0:00:19]} 62. Ra8 {[%clk 0:00:04]}  Rd5 {[%clk 0:00:18]} 63. Rf8+ {[%clk 0:00:04]}  Kg4 {[%clk 0:00:18]} 64. Kg2 {[%clk 0:00:04]}  Rd2+ {[%clk 0:00:18]} 65. Kg1 {[%clk 0:00:04]}  Rc2 {[%clk 0:00:18]} 66. Rg8+ {[%clk 0:00:04]}  Kf3 {[%clk 0:00:18]} 67. Rf8+ {[%clk 0:00:05]}  Kg4 {[%clk 0:00:17]} 68. Rg8+ {[%clk 0:00:05]}  Kh3 {[%clk 0:00:17]} 69. Rh8+ {[%clk 0:00:06]}  Kg4 {[%clk 0:00:17]} 70. Rg8+ {[%clk 0:00:06]} 1/2-1/2


[Site "https://www.chess.com"]